Cogmind - Beta 16 @@@ ROGUE MODE // 2025.12.29 @ 20:00:11 Player: Ascius Result: Destroyed by G-47 Trooper with Particle Gun Performance ------------- Evolutions (3) 1500 Regions Visited (7) 1400 Robots Destroyed (94) 470 Value Destroyed (2899) 2899 Prototype IDs (4) 80 Alien Tech Used (0) 0 Bonus (627) 627 TOTAL SCORE: 6976 Bonus ------- High Alert Combat Kills 127 Entered DSFs 500 Cogmind --------- Core Integrity 0/700 Matter 56/300 Energy 98/100 System Corruption 13% Temperature Hot (208) Movement Treading (250) Ox1 Location -7/DSF Parts ------- > --- POWER (1) -------- (None) > --- PROPULSION (3) --- Armored Treads Armored Treads > --- UTILITY (6) ------ Hardened Heavy Armor Plating > --- WEAPON (3) ------- Gauss Rifle > --- INVENTORY (5) ---- Angular Momentum Engine Compact Wheel High-powered Shotgun Peak State ------------ > --- POWER ------------ Light Angular Momentum Engine > --- PROPULSION ------- Medium Treads Improved Aluminum Leg Improved Titanium Leg > --- UTILITY ---------- Improved Heat Sink Improved Targeting Computer Improved Power Shielding Improved Propulsion Shielding Advanced Drone Bay > --- WEAPON ----------- Beam Rifle Ion Cannon Katana > --- INVENTORY -------- Light Nuclear Core Light Treads Improved Heat Sink Plasma Cannon High-powered Shotgun [Rating: 47] Favorites ----------- Power Improved Ion Engine Engine Improved Ion Engine Power Core Light Nuclear Core Propulsion Improved Treads Treads Improved Treads Leg Improved Aluminum Leg Wheel Compact Wheel Flight Unit Surge Thruster Utility Improved Heat Sink Device Improved Heat Sink Storage Small Storage Unit Processor Improved Targeting Computer Protection Core Shielding Weapon Particle Gun Energy Gun Particle Gun Energy Cannon Ion Cannon Ballistic Gun Light Assault Rifle Slashing Weapon Katana Build | -11 -10 -9 -8 -7 -7 -7 -7 ------- Run | Yrd Mat Mat Mat Fac Was Fac DSF Slots Evolved 6 | . . 2 2 2 . . . Power . | . . . . . . . . Propulsion 1 | . . . . 1 . . . Utility 4 | . . 1 2 1 . . . Weapon 1 | . . 1 . . . . . Parts Attached 93 | 8 7 10 30 16 1 2 19 Power 10 | 1 1 1 3 3 . . 1 Engine 8 | 1 1 1 2 2 . . 1 Core 2 | . . . 1 1 . . . Reactor . | . . . . . . . . Propulsion 24 | 4 . 3 7 2 . 1 7 Treads 13 | 2 . 3 4 1 . 1 2 Leg 7 | 2 . . 1 1 . . 3 Wheel 3 | . . . 2 . . . 1 Hover . | . . . . . . . . Flight 1 | . . . . . . . 1 Utility 31 | 1 4 1 9 9 . . 7 Device 13 | . 3 . 4 6 . . . Storage 1 | 1 . . . . . . . Processor 4 | . 1 . 2 1 . . . Hackware . | . . . . . . . . Protection 13 | . . 1 3 2 . . 7 Artifact . | . . . . . . . . Weapon 28 | 2 2 5 11 2 1 1 4 Energy Gun 11 | . 1 2 8 . . . . Energy Cannon 4 | . . . 1 2 1 . . Ballistic Gun 11 | 2 1 3 . . . 1 4 Ballistic Cannon . | . . . . . . . . Launcher . | . . . . . . . . Special Weapon . | . . . . . . . . Impact Weapon . | . . . . . . . . Slashing Weapon 2 | . . . 2 . . . . Piercing Weapon . | . . . . . . . . Special Melee Weapon . | . . . . . . . . Unidentified Prototypes 2 | . . 1 . 1 . . . Parts Lost 34 | . . 3 18 1 6 . 6 Power 5 | . . . 3 1 1 . . Propulsion 10 | . . 1 5 . 2 . 2 Utility 10 | . . 1 4 . 2 . 3 Weapon 9 | . . 1 6 . 1 . 1 Highest Loss Streak 13 | . . 2 13 1 6 . 3 To Critical Strikes . | . . . . . . . . Average Backups 4 | 2 4 4 4 4 5 1 1 Power 1 | . 1 1 . 1 1 . . Propulsion 1 | 1 2 2 1 . 1 . . Utility . | . . . . . 1 . . Weapon 1 | . 1 . 1 2 2 . . Tool/Special . | . . . . . . . . Unused Backups 7 | . 2 1 . 4 . . . Power 5 | . 2 1 . 2 . . . Propulsion . | . . . . . . . . Utility . | . . . . . . . . Weapon 2 | . . . . 2 . . . Tool/Special . | . . . . . . . . Average Slot Usage (%) 89 | . 98 94 92 96 63 28 28 Engine 8 | . 14 11 7 2 4 . . Core 1 | . . . . 4 . 5 2 Treads 15 | . 28 21 14 4 4 5 3 Leg 3 | . . . . 12 9 . 6 Wheel 1 | . . . . 4 . . . Device 13 | . 17 14 11 15 9 5 2 Storage 1 | . 6 . . . . . . Processor 10 | . 2 11 17 11 10 . . Protection 8 | . . 6 12 14 10 . 6 Energy Gun 10 | . 7 14 17 5 . . . Energy Cannon 2 | . . . . 8 9 5 1 Ballistic Gun 8 | . 20 15 3 . . 5 4 Slashing Weapon 2 | . . . 4 7 4 . . Peak Build Rating 47 | 6 10 19 27 47 44 15 36 Average Rating 20 | 5 7 15 22 40 28 13 12 On Entrance 13 | . 6 10 19 25 44 1 5 Avg Prop Armor Cover (%) 8 | . . . . 7 9 . 25 Naked Turns 87 | . . . . . 48 1 38 Heaviest Build 35 | 10 15 18 27 35 33 17 30 Greatest Support 51 | 40 40 46 46 33 33 20 51 Greatest Overweight (x) 3 | 3 . . 1 1 1 . 3 Average Overweight (x) . | . . . . . . . . Largest Inventory Capacity 8 | 8 8 5 5 5 5 5 5 Average Capacity 5 | 7 6 5 5 5 5 5 5 Most Carried 8 | 4 8 5 5 5 5 4 5 Average Carried 4 | 2 4 4 4 4 5 . 1 Final Capacity 8 | 8 5 5 5 5 5 5 5 Final Carried 5 | 4 5 5 4 5 5 4 3 Class Distribution -------------------- 61% | Mutant 10% | Tank 7% | Scavenger-Mutant 7% | Scavenger-Tank 5% | Gunner 5% | Scavenger-Gunner Dominant Class ---------------- Mutant | -10/Materials Tank | -9/Materials Mutant | -8/Materials Mutant | -7/Factory Mutant | -7/Waste Mutant | -7/Factory Mutant | -7/DSF Resources | -11 -10 -9 -8 -7 -7 -7 -7 ----------- Run | Yrd Mat Mat Mat Fac Was Fac DSF Matter Collected 1526 | 233 215 315 375 134 . 57 197 Remotely . | . . . . . . . . Salvage Created 4290 | . 415 1192 1532 195 636 57 263 Parts 220 | . 22 66 92 11 7 2 20 Haulers Intercepted 8 | . . 4 4 . . . . Recyclers Shooed 2 | . . . 2 . . . . Parts Field Recycled . | . . . . . . . . Retrieved Matter . | . . . . . . . . Parts Self-Destructed . | . . . . . . . . Prevented . | . . . . . . . . Parts Restored . | . . . . . . . . Kills | -11 -10 -9 -8 -7 -7 -7 -7 ------- Run | Yrd Mat Mat Mat Fac Was Fac DSF Combat Hostiles Destroyed 71 | . 10 20 28 5 2 . 6 Melee 8 | . . . 8 . . . . Guns 53 | . 10 19 17 2 . . 5 Cannons 5 | . . . . 3 1 . 1 AOE 3 | . . 1 2 . . . . Classes Destroyed 18 | . 3 6 4 1 1 . 3 Worker 2 | . . 1 1 . . . . Hauler 8 | . . 4 4 . . . . Recycler 2 | . . 1 . . . 1 . Mechanic 1 | . . . 1 . . . . Operator 1 | . . 1 . . . . . Watcher 9 | . 3 3 3 . . . . Swarmer 16 | . 3 3 7 3 . . . Cutter 2 | . . . . . . . 2 Grunt 36 | . 7 13 14 . . . 2 Brawler 1 | . . . 1 . . . . Duelist 3 | . . 2 1 . . . . Protector 1 | . . . 1 . . . . Sentry 6 | . . 2 3 1 . . . Specialist 1 | . . . . . . . 1 Hunter 1 | . . . 1 . . . . Programmer 1 | . . . . 1 . . . Heavy 1 | . . . . . . . 1 Compactor 2 | . . . . . 2 . . Best Kill Streak 10 | . 3 10 6 4 1 1 3 Combat Bots Only 7 | . 3 7 6 4 1 . 3 Max Kills in Single Turn 2 | . 2 2 2 1 1 1 1 Gunslinging 1 | . 1 . . . . . . Exploded 1 | . . 1 1 . . . . Melee 1 | . . . 1 . . . . Uniques/NPCs Destroyed . | . . . . . . . . Combat | -11 -10 -9 -8 -7 -7 -7 -7 -------- Run | Yrd Mat Mat Mat Fac Was Fac DSF Hostile Shots Fired 524 | . 42 73 199 33 6 . 171 Missed 143 | . 12 20 46 14 1 . 50 Hits 381 | . 30 53 153 19 5 . 121 Melee 50 | . . 4 12 . 5 . 29 Projectile 331 | . 30 49 141 19 . . 92 AOE 3 | . . . . . . . 3 Critical Strikes 36 | . 2 2 9 . 4 . 19 Actively Blocked 4 | . . 1 2 . 1 . . Damage Taken 6539 | . 381 722 2557 227 246 . 2406 Core 1402 | . 40 179 480 43 129 . 531 Absorbed by Shields . | . . . . . . . . Redirected to Shielding 107 | . . 16 28 25 38 . . Core Remaining (%) 62 | 100 84 55 12 . . . . Volleys Fired 262 | . 43 74 72 15 18 2 38 Largest 3 | . 2 3 3 2 2 1 2 Hottest 178 | . 85 133 178 116 160 69 97 Shots Fired 576 | . 86 210 172 30 34 2 42 Gun 512 | . 86 210 168 15 . . 33 Cannon 64 | . . . 4 15 34 2 9 Launcher . | . . . . . . . . Special . | . . . . . . . . Kinetic 238 | . 58 118 29 . . . 33 Thermal 255 | . 28 59 104 30 34 . . Explosive . | . . . . . . . . Electromagnetic 83 | . . 33 39 . . 2 9 Robot Hit Streak 17 | . 5 17 12 9 6 1 9 Robot Miss Streak 9 | . 3 5 5 2 3 1 9 Penetration Max 1 | . . . . . . . 1 Secondary Targets 6 | . 2 3 1 . . . . Max Gunslinging Chain 1 | . 1 1 1 . . . . Shots Hit Robots 394 | . 50 129 139 21 25 1 29 Core Hits 183 | . 27 57 69 11 3 1 15 Critical Kills 2 | . . 1 . . 1 . . Critical Parts Destroyed 1 | . . 1 . . . . . Critical Strikes 11 | . . 5 3 2 1 . . Burn 7 | . . 3 2 2 . . . Meltdown 1 | . . . . . 1 . . Destroy 2 | . . 2 . . . . . Sever 1 | . . . 1 . . . . Melee Attacks 27 | . . . 26 1 . . . Impact . | . . . . . . . . Slashing 27 | . . . 26 1 . . . Piercing . | . . . . . . . . Sneak Attacks . | . . . . . . . . Combat Hostiles . | . . . . . . . . Follow-up Attacks . | . . . . . . . . Damage Inflicted 7135 | . 597 1909 2793 430 757 32 617 Guns 5039 | . 597 1828 1975 173 . . 466 Cannons 1207 | . . . 45 222 757 32 151 Explosions 210 | . . 67 143 . . . . Melee 660 | . . . 625 35 . . . Ramming 19 | . . 14 5 . . . . Kinetic 1920 | . 393 801 260 . . . 466 Thermal 3327 | . 204 619 1352 395 757 . . Explosive . | . . . . . . . . Electromagnetic 1209 | . . 475 551 . . 32 151 Impact . | . . . . . . . . Slashing 660 | . . . 625 35 . . . Piercing . | . . . . . . . . Highest Corruption 13 | . . . 8 . 13 13 13 Average Corruption 10 | . . . 7 . 8 13 13 Corruption Purged . | . . . . . . . . Corruption Blocked . | . . . . . . . . Effects 21 | . . . 6 . 2 1 12 Message Errors 4 | . . . 3 . 1 . . Matter Fused 4 | . . . 1 . 1 . 2 Heat Flow Errors 3 | . . . 1 . . . 2 Energy Discharges 2 | . . . 1 . . . 1 Parts Fused 1 | . . . . . . 1 . Data Loss (minor) 1 | . . . . . . . 1 Data Loss (major) 2 | . . . . . . . 2 Alerts 1 | . . . . . . . 1 Misdirections 2 | . . . . . . . 2 Weapon Failures 1 | . . . . . . . 1 Overload Shots . | . . . . . . . . Overflow Damage 42 | . . . 21 21 . . . Projectiles 21 | . . . . 21 . . . Explosions . | . . . . . . . . Melee 21 | . . . 21 . . . . Knockbacks . | . . . . . . . . Impact . | . . . . . . . . Kinetic . | . . . . . . . . Secondary . | . . . . . . . . Self-Inflicted Damage 96 | . . 21 75 . . . . Shots 3 | . . 1 2 . . . . Rammed 6 | . . 5 1 . . . . Targets Rammed 6 | . . 5 1 . . . . Kicked . | . . . . . . . . Crushed . | . . . . . . . . Highest Temperature 304 | . 304 123 243 . 125 . 246 Average Temperature 50 | . 98 29 43 . 44 . 117 Received Heat Transfer 2151 | . 249 207 1080 12 . . 603 Effects 2 | . . . 2 . . . . Interference 2 | . . . 2 . . . . Siege Activations . | . . . . . . . . Martial Activations . | . . . . . . . . Shielding Activations . | . . . . . . . . Robots Disrupted . | . . . . . . . . Combat Hostiles . | . . . . . . . . Robots Corrupted . | . . . . . . . . Combat Hostiles . | . . . . . . . . Parts Fried 2 | . . 2 . . . . . Impact Corruptions . | . . . . . . . . Robots Melted 2 | . . . 1 . 1 . . Combat Hostiles 2 | . . . 1 . 1 . . Parts Melted 9 | . . 5 2 2 . . . Heat Transferred 7539 | . 481 1617 3053 888 1500 . . Parts Sabotaged . | . . . . . . . . Parts Stolen . | . . . . . . . . Parts Stripped . | . . . . . . . . Power Chain Reactions 4 | . . 1 3 . . . . Alert | -11 -10 -9 -8 -7 -7 -7 -7 ------- Run | Yrd Mat Mat Mat Fac Was Fac DSF Maximum Alert Level 2 | . . 1 2 1 . . . Low Security (%) 66 | 100 100 60 21 81 100 100 100 Level 1 25 | . . 39 52 18 . . . Level 2 7 | . . . 25 . . . . Level 3 . | . . . . . . . . Level 4 . | . . . . . . . . Level 5 . | . . . . . . . . High Security . | . . . . . . . . Max Security . | . . . . . . . . Peak Influence 551 | . 94 359 551 250 30 5 195 Initial 250 | . . 13 148 250 30 . . Average 147 | . 26 156 281 156 6 . 49 Influence Increases 2382 | . 292 627 1047 196 . 5 215 Destroy 0b10 Robot/C 1360 | . 200 400 540 100 . . 120 Destroy 0b10 Robot/NC 120 | . 15 50 50 . . 5 . Destroy Leader 304 | . 56 94 104 30 . . 20 Successful Hack 54 | . 19 2 28 5 . . . Disable Machine 60 | . . 30 15 15 . . . Anti-Garrison Action 150 | . . . 150 . . . . Destroy Structure 19 | . 2 6 10 1 . . . Partial Spotted 15 | . . . . 15 . . . Lose Combat Pursuer 300 | . . 45 150 30 . . 75 Influence Decreases 2187 | . 261 306 848 661 86 5 20 Entered New Map 579 | . . 18 204 301 56 . . Time Decay 1368 | . 261 268 464 350 20 5 . Lost Part 230 | . . 20 180 10 . . 20 Lost Ally 10 | . . . . . 10 . . Squads Dispatched 11 | . 1 2 4 2 . . 2 Investigation 3 | . 1 1 . 1 . . . Extermination 1 | . . . . 1 . . . Reinforcement 5 | . . 1 2 . . . 2 Assault 2 | . . . 2 . . . . Garrison . | . . . . . . . . Intercept . | . . . . . . . . Searches Triggered . | . . . . . . . . Construction Impeded . | . . . . . . . . Haulers Reinforced . | . . . . . . . . Active Scanning Responses . | . . . . . . . . Cargo Convoy Interrupts . | . . . . . . . . Stealth | -11 -10 -9 -8 -7 -7 -7 -7 --------- Run | Yrd Mat Mat Mat Fac Was Fac DSF Distress Signals 9 | . 2 4 3 . . . . Communications Jammed . | . . . . . . . . Distress Signals . | . . . . . . . . Times Spotted 125 | . 16 30 48 9 6 . 16 Peak Tracking Total 10 | . 4 5 10 4 4 . 6 Tactical Retreats 11 | . . 3 5 1 . . 2 Traps | -11 -10 -9 -8 -7 -7 -7 -7 ------- Run | Yrd Mat Mat Mat Fac Was Fac DSF Traps Triggered 3 | . 1 . . 1 . . 1 Indirectly . | . . . . . . . . Trap Hack Attempts . | . . . . . . . . Triggered . | . . . . . . . . Disarmed 4 | . 4 . . . . . . Reprogrammed . | . . . . . . . . Reused . | . . . . . . . . Traps Extracted . | . . . . . . . . Installed . | . . . . . . . . Triggered . | . . . . . . . . Machines | -11 -10 -9 -8 -7 -7 -7 -7 ---------- Run | Yrd Mat Mat Mat Fac Was Fac DSF Machines Disabled 5 | . . 2 2 1 . . . Max in Single Turn 1 | . . 1 1 1 . . . Garrison Access 1 | . . . 1 . . . . Machines Repaired . | . . . . . . . . Machines Dismantled . | . . . . . . . . Machines Sabotaged . | . . . . . . . . Overloaded Fab Kills . | . . . . . . . . Hacking | -11 -10 -9 -8 -7 -7 -7 -7 --------- Run | Yrd Mat Mat Mat Fac Was Fac DSF Machines Accessed 25 | . 10 4 5 5 . 1 . Terminals 18 | . 8 2 5 2 . 1 . Fabricators 2 | . . . . 2 . . . Repair Stations . | . . . . . . . . Recycling Units 4 | . 2 1 . 1 . . . Scanalyzers 1 | . . 1 . . . . . Garrison Access . | . . . . . . . . Total Hacks 77 | . 34 14 12 16 . 1 . Successful 37 | . 14 8 8 6 . 1 . Failed 39 | . 20 5 4 10 . . . Catastrophic 5 | . 3 . . 2 . . . Database Lockouts 1 | . . 1 . . . . . Manual 20 | . 2 1 9 8 . . . Terminals 53 | . 27 6 12 7 . 1 . Fabricators 7 | . . . . 7 . . . Repair Stations . | . . . . . . . . Recycling Units 12 | . 7 3 . 2 . . . Scanalyzers 5 | . . 5 . . . . . Garrison Access . | . . . . . . . . Terminal Hacks 17 | . 10 2 3 1 . 1 . Record 1 | . . 1 . . . . . Robot Analysis 1 | . . 1 . . . . . Prototype ID Bank 1 | . . . 1 . . . . Open DSF 1 | . . . . . . 1 . Locate Traps 5 | . 3 . 1 1 . . . Disarm Traps 1 | . 1 . . . . . . Dispatch Records 1 | . 1 . . . . . . Maintenance Status 1 | . 1 . . . . . . Hauler Manifests 2 | . 2 . . . . . . Registered Components 1 | . 1 . . . . . . Zone Layout 2 | . 1 . 1 . . . . Fabricator Hacks 4 | . . . . 4 . . . Network Status 2 | . . . . 2 . . . Build 2 | . . . . 2 . . . Repair Station Hacks . | . . . . . . . . Recycling Unit Hacks 7 | . 4 3 . . . . . Recycle Component 1 | . . 1 . . . . . Process 2 | . 1 1 . . . . . Report Inventory 4 | . 3 1 . . . . . Scanalyzer 3 | . . 3 . . . . . Insert Component 1 | . . 1 . . . . . Analyze 1 | . . 1 . . . . . Retrieve Study 1 | . . 1 . . . . . Garrison Access Hacks . | . . . . . . . . Unauthorized Hacks 6 | . . . 5 1 . . . Terminals 6 | . . . 5 1 . . . Track 6 | . . . 5 1 . . . Fabricators . | . . . . . . . . Repair Stations . | . . . . . . . . Recycling Units . | . . . . . . . . Scanalyzers . | . . . . . . . . Garrison Access . | . . . . . . . . Data Cores Recovered . | . . . . . . . . Used . | . . . . . . . . Hacking Detections 20 | . 9 3 4 4 . . . Full Trace Events 2 | . . 1 . 1 . . . Feedback Events . | . . . . . . . . Feedback Blocked . | . . . . . . . . Robot Schematics Acquired . | . . . . . . . . Robots Built 1 | . . . . 1 . . . Authchips . | . . . . . . . . Time 81 | . . . . 81 . . . Total Robot Build Rating 1 | . . . . 1 . . . Part Schematics Acquired . | . . . . . . . . Parts Built 1 | . . . . 1 . . . Authchips . | . . . . . . . . Time 106 | . . . . 106 . . . Total Part Build Rating 6 | . . . . 6 . . . Part Studies Acquired 1 | . . 1 . . . . . Parts Repaired . | . . . . . . . . Time . | . . . . . . . . Parts Recycled 1 | . . 1 . . . . . Recycled Matter 226 | . 3 223 . . . . . Retrieved Matter . | . . . . . . . . Retrieved Components . | . . . . . . . . Parts Scanalyzed 1 | . . 1 . . . . . Part Schematics Acquired . | . . . . . . . . Parts Damaged . | . . . . . . . . Bothacking | -11 -10 -9 -8 -7 -7 -7 -7 ------------ Run | Yrd Mat Mat Mat Fac Was Fac DSF Used RIF Installer . | . . . . . . . . Robots Hacked . | . . . . . . . . Non-combat . | . . . . . . . . Combat . | . . . . . . . . Robot Hacks Applied . | . . . . . . . . Relay Couplers Released 3 | . . . 3 . . . . Machine Destruction 3 | . . . 3 . . . . Fabnet Peak Effective % . | . . . . . . . . Robots Rewired . | . . . . . . . . Allies Hacked . | . . . . . . . . Hacks Repelled . | . . . . . . . . Allies | -11 -10 -9 -8 -7 -7 -7 -7 -------- Run | Yrd Mat Mat Mat Fac Was Fac DSF Total Allies 2 | . . . . 1 1 . . Largest Group 2 | . . . . . 2 . . Highest-Rated Group 41 | . . . . . 41 . . Highest-Rated Ally 31 | . . . . . 31 . . Total Orders 2 | . . . . 2 . . . EXPLORE 2 | . . . . 2 . . . Ally Attacks 13 | . . . . . 13 . . Total Damage 167 | . . . . . 167 . . Kills . | . . . . . . . . Allies Corrupted . | . . . . . . . . Allies Melted . | . . . . . . . . Intel | -11 -10 -9 -8 -7 -7 -7 -7 ------- Run | Yrd Mat Mat Mat Fac Was Fac DSF Active Infowar (turns) 1326 | . 656 249 28 287 106 . . Sensors 414 | . . . 28 280 106 . . Structural 905 | . 656 249 . . . . . ECM 7 | . . . . 7 . . . Robot Analysis Total 1 | . . 1 . . . . . Derelict Logs Recovered . | . . . . . . . . Drone Launches 2 | . . . . 2 . . . Drone Recoveries . | . . . . . . . . Exploration | -11 -10 -9 -8 -7 -7 -7 -7 ------------- Run | Yrd Mat Mat Mat Fac Was Fac DSF Turns Passed 4204 | 78 886 849 1169 790 168 34 230 Spaces Moved 2217 | 46 460 361 512 513 162 14 149 Core 256 | 11 . . 4 . 121 1 119 Treads 1320 | 25 460 361 449 7 . 13 5 Legs 406 | 10 . . 24 307 41 . 24 Wheels 234 | . . . 35 199 . . . Hover . | . . . . . . . . Flight 1 | . . . . . . . 1 Fastest Speed 35 | 50 160 160 100 100 50 50 35 Average Speed 136 | 136 160 160 154 122 69 152 69 Slowest Speed 250 | 200 160 160 190 195 200 160 250 Overloaded Moves . | . . . . . . . . Propulsion Burnouts . | . . . . . . . . Robots Hopped . | . . . . . . . . Potential Cave-ins . | . . . . . . . . Cave-ins Triggered . | . . . . . . . . Exploration Rate (%) 52 | 3 87 41 49 20 93 . 74 Regions Visited 7 Branch Regions . Pre-discovered Areas . | . . . . . . . . Known Exits Taken 4 | . 1 1 1 . . 1 . Unknown Exits Taken 1 | 1 . . . . . . . Scrap Searched . | . . . . . . . . Spaces Dug . | . . . . . . . . Terrain Destroyed 7 | . . 2 5 . . . . Melee . | . . . . . . . . Projectile 1 | . . . 1 . . . . AOE 6 | . . 2 4 . . . . Terrain Rammed . | . . . . . . . . Walls Destroyed . | . . . . . . . . Machines Disabled . | . . . . . . . . Actions | -11 -10 -9 -8 -7 -7 -7 -7 --------- Run | Yrd Mat Mat Mat Fac Was Fac DSF Total 2855 | 57 533 479 705 647 182 25 227 Wait 144 | . 11 13 46 70 1 . 3 Move 2211 | 45 459 360 511 513 161 13 149 Hop . | . . . . . . . . Pick Up 40 | 4 4 9 11 10 . 1 1 Fast Attach 63 | 6 5 2 14 10 . 1 25 Attach 23 | . . 4 12 2 . 4 1 Detach 13 | . 2 . . 3 . 3 5 Swap 22 | 2 2 5 5 7 1 . . Drop 44 | . 7 7 7 16 1 1 5 Fire 262 | . 43 74 72 15 18 2 38 Melee 27 | . . . 26 1 . . . Ram . | . . . . . . . . Kick . | . . . . . . . . Crush 6 | . . 5 1 . . . . Escape Stasis . | . . . . . . . . Rewire . | . . . . . . . . Trap . | . . . . . . . . Miscellaneous . | . . . . . . . . Route ------- -11/Scrapyard -10/Materials (discovered 4 exits: *Mat x3 / [*Min]) -9/Materials -8/Materials (discovered 4 exits: *Fac x2 / *Sto x2) -7/Factory -7/Waste -7/Factory -7/DSF History --------- Turn | Location | Event 16 | -11/Scrapyard | Discovered new exit (range 15) 79 | -11/Scrapyard | Entered Materials 111 | -10/Materials | Discovered new exit (range 16) 313 | -10/Materials | Build established: Mutant 331 | -10/Materials | Discovered new exit (range 6) 533 | -10/Materials | Discovered new exit (range 13) 809 | -10/Materials | Discovered new exit (range 10) 830 | -10/Materials | Identified exit to Materials 965 | -10/Materials | Entered another Materials area 965 | -9/Materials | Evolved 2 slots: Utility x1, Weapon x1 1300 | -9/Materials | Destroyed 7 combat bots 1401 | -9/Materials | Central database locked down 1671 | -9/Materials | Build established: Tank 1775 | -9/Materials | Discovered new exit (range 14) 1798 | -9/Materials | Identified exit to Materials 1814 | -9/Materials | Entered another Materials area 1814 | -8/Materials | Evolved 2 slots: Utility x2 1817 | -8/Materials | Discovered new exit (range 14) 1857 | -8/Materials | Identified exit to Storage 2326 | -8/Materials | Discovered exit to Storage (range 16) 2501 | -8/Materials | Discovered new exit (range 16) 2529 | -8/Materials | Identified exit to Factory 2734 | -8/Materials | Build established: Mutant 2815 | -8/Materials | Core integrity fell below 50% 2873 | -8/Materials | Core integrity fell below 20% 2874 | -8/Materials | Lost 13 parts (2p3n4u4w) 2975 | -8/Materials | Discovered exit to Factory (range 3) 2983 | -8/Materials | Entered Factory 2983 | -7/Factory | Evolved 2 slots: Propulsion x1, Utility x1 3204 | -7/Factory | Build established: Scavenger-Mutant 3282 | -7/Factory | Fabricated Adv. Drone Bay? 3506 | -7/Factory | Build established: Mutant 3773 | -7/Factory | Fabricated A-02 Transporter (x1) 3773 | -7/Factory | Sucked down chute 3773 | -7/Factory | Entered Waste 3774 | -7/Waste | Met a frightened Derelict 3778 | -7/Waste | 1 allies followed down the chute 3788 | -7/Waste | EMP discharged 3797 | -7/Waste | Spotted C-40 Crusher 3803 | -7/Waste | Destroyed C-40 Crusher 3809 | -7/Waste | Spotted C-40 Crusher 3812 | -7/Waste | Spotted C-40 Crusher 3829 | -7/Waste | Spotted C-40 Crusher 3852 | -7/Waste | Destroyed C-40 Crusher 3872 | -7/Waste | Crushed by Compactor (1 part destroyed, 1 dropped) 3876 | -7/Waste | Crushed by Compactor (1 part destroyed, 1 dropped) 3879 | -7/Waste | Crushed by Compactor (1 part destroyed, 2 dropped) 3880 | -7/Waste | Crushed by Compactor (1 part destroyed, 2 dropped) 3887 | -7/Waste | Spotted C-40 Crusher 3888 | -7/Waste | EMP discharged 3888 | -7/Waste | System corruption reached 10% 3893 | -7/Waste | Crushed by Compactor (1 part destroyed) 3904 | -7/Waste | Spotted C-40 Crusher 3924 | -7/Waste | Lost 6 parts (1p2n2u1w) 3937 | -7/Waste | Discovered new exit (range 10) 3941 | -7/Waste | Entered Factory 3973 | -7/Factory | Identified exit to DSF 3975 | -7/Factory | Entered DSF 3997 | -7/DSF | Additional patrols routed to DSF 4096 | -7/DSF | Core integrity fell below 50% 4115 | -7/DSF | Lost 3 parts (1n1u1w) 4155 | -7/DSF | Core integrity fell below 20% 4205 | -7/DSF | Destroyed by G-47 Trooper with Particle Gun Last Messages --------------- Acquired Hrd. Heavy Armor Plating. Acquired Gauss Rifle. Slug penetrates Wall. Slug penetrates G-47 Trooper. G-47 Trooper destroyed. Slug penetrates G-47 Trooper. G-47 Trooper destroyed. C-30 ARC bursts open, deploying its payload. G-50 Soldier unfolds itself. G-47 Trooper unfolds itself. Slug penetrates X-57 Shotgunner. Critical hit (Destroy). Slug penetrates G-47 Trooper. Slug penetrates X-57 Shotgunner. X-57 Shotgunner destroyed. System corrupted: Heat flow error (+267). Slug penetrates G-47 Trooper. [Achievement: Oops] Acquired 55 matter. Critical hit (Burn: +37). Map ----- +----------------------------------------------------+ | | | | | | | | | | | | | | | | | | | ?????????????????????????????????????????????????? | | ?????????????????????????????????????????????????? | | ?????????????????????????????????????????????????? | | ???????????????????????????##????????????????????? | | ????????????????????##????? ?????????#""?????????? | | ????????????????????# ##### ?????????#"#?????????? | | ????????????????????# # ##]##???????##"####??????? | | ????????????????????#= ]#########"""""#??????? | | ????????????????????# ]# [[#[ ##"""""#??????? | | ????????????????????# [[ ""##"????? | | ????????????????????# ][ [ """""????? | | ????????????????????## ### [#[[## ""###????? | | ???????????????????#### [%###[[[#[[### ###??????? | | ???????????????????#;[[[!*!!########## ##???????? | | ???????????????????##[*!%!!!#??????#[[= #???????? | | ????????????????????#[[!!=!!#??????#[ #???????? | | ????????????????????##[!g@###??????### ##???????? | | ????????????????????#**!!!!!#??????#[[ #???????? | | ????????????????????#**gg=!!#??????#[[ #???????? | | ????????????????????#**!g!!!#??????#[[ #???????? | | ??????#################/!!############ ###??????? | | ??????#!! ##[[[#!!!##; ###]]]#!!!## #??????? | | ??????#!! ##[[[#!!!## ##]]]#!!!## #??????? | | ??????#!! ^ !!#??????? | | ??????#!! !!#??????? | | ??????#!! % !!#??????? | | ??????# ## #** ## a##!!!# ## ==#??????? | | ??????# ## #***###a ###!!!# ## ==#??????? | | ??????### ##########?# #?########## ###??????? | | ???????# //#???????!! !!????????? ????????? | | ???????# //#??????#!! !!#???????? #???????? | | ???????# //#??????#!! !!#???????? #???????? | | ???????## ###??????### ###????????# ##???????? | | ???????#] ]]#???????? ??????????! !????????? | | ???????#] ]]#???????? ??????????! !????????? | | ???????## ###??????? ?????????# #????????? | | ????????# #?????????## ##?????????? #????????? | | ????????" #?????????# #??????????? "????????? | | ???????"" ???????? ??????????????????????? | | ??????#"" ??????? ??????????????????????? | | ??????#"""""##//??????/ !??????????????????????? | +----------------------------------------------------+ Best States ------------- Heat Dissipation 62 Energy Generation 18 Energy Capacity 310 Matter Stores 300 Matter Capacity 300 Sight Range 16 Robot Scan Range 15 Terrain Scan Density 10 ECM Strength 2 Armor Coverage 600 Resistance: EM 15 Core Shielding 20 Power Shielding 66 Propulsion Shielding 66 Evasion (%) 55 Targeting Accuracy 6 Melee Accuracy 5 Recoil Reduction 2 Particle Charging 15 Item Schematics ----------------- None Robot Schematics ------------------ None Fabricated ------------ Adv. Drone Bay | x1 | -7/Factory | Preloaded A-02 Transporter | x1 | -7/Factory | Preloaded Repaired ---------- Nothing Studied --------- Imp. Ion Engine | -9/Materials | Hacked Alien Tech Used ----------------- None Achievements -------------- Hydra I Spy My Command Is Your Wish Oops Physics Hates This One Trick True Hacker Challenges ------------ None Game ------ Seed FusionLauncherArchive Manual? 0 Play Time 02:32:30 Cumulative 12.5 hours Start 2025.12.29 @ 17:13:06 End 2025.12.29 @ 20:00:11 Sessions 1 Manual Loads 0 Difficulty Rogue Special Mode None Game No. 4 Rogue 4 Adventurer 0 Explorer 0 Win Type - Total 0 Types 0/0/0/0/0/0/0/0/0/0 Lore% 4 Gallery% 11 Achievement% 10 Wizard Run 0 Options --------- Layout 1 ASCII 0 Keyboard 0 Movement Mouse Keybinds 0 Fullscreen 1 Font 32/SmallcapsGlow Map View 50x35 Zoom Use 0% Tactical HUD 0 Map Filters NONE Filters NONE Steam 1 RUN: bd05ca77-0284-423e-9531-4bbaa9f5b783